bitfinex/quotes_ETHUSD_20240916
["timestamp","ask_amount","ask_price","bid_price","bid_amount"]
[1726458254650,0.85640701,2279.3,2279.1,4.38768]
[1726458254870,0.14622243,2279.2,2279.1,4.38752]
[1726458255013,1.37923652,2279.4,2279.1,1.318408]
[1726458255014,0.91903562,2279.4,2279.1,1.318408]
[1726458255215,1.00402344,2279.3,2279.0,4.38776]
[1726458255439,2.35132594,2279.3,2279.0,4.38776]
[1726458255639,0.85647938,2279.2,2279.0,4.38776]
[1726458255853,2.20380632,2279.2,2278.8,8.7763]
[1726458256055,1.00413928,2279.1,2278.9,4.38803]
[1726458256357,0.14761829,2279.1,2278.9,4.38803]
[1726458258435,2.35168454,2279.1,2278.9,4.38803]
[1726458258639,1.06665391,2279.1,2278.9,4.38803]
[1726458260168,0.14761829,2279.1,2278.9,4.38803]
[1726458263168,0.14761829,2279.1,2279.0,4.38788]
[1726458264398,0.14761829,2279.1,2278.9,4.38798]
[1726458264752,0.99955945,2279.1,2279.0,4.38788]
[1726458265570,3.19642689,2279.1,2279.0,4.38788]
[1726458265765,3.19643311,2279.1,2279.0,4.38788]
[1726458266265,3.79063446,2279.1,2278.9,8.77596]
[1726458266466,1.06665391,2279.1,2278.9,4.38798]
[1726458266678,0.8519384,2279.0,2278.9,4.38798]
[1726458266896,0.14721377,2279.0,2278.9,4.38798]
[1726458267853,0.14721377,2279.0,2278.8,8.77624]
[1726458268001,0.99917417,2279.0,2278.8,8.77627]
[1726458268191,1.06624939,2279.0,2278.8,4.38812]
[1726458268504,0.14721377,2279.0,2278.8,4.38812]
[1726458268863,0.14721377,2279.0,2278.7,8.79725]
[1726458269207,0.14721377,2279.0,2278.5,1.06506795]
[1726458269208,0.91903562,2278.8,2278.4,8.67972]
[1726458269504,0.99927259,2278.7,2278.4,8.67971]
[1726458269713,2.3444211,2278.7,2278.4,8.67971]
[1726458269905,1.06617859,2278.7,2278.4,8.67971]
[1726458270203,1.06617859,2278.7,2278.4,8.77786]
[1726458270363,1.06617859,2278.7,2278.4,4.38891]
[1726458270718,1.06617859,2278.7,2278.3,0.0381403]
[1726458270719,3.04950988,2278.6,2278.3,0.0381403]
[1726458270903,1.51333624,2278.6,2278.3,0.0381403]
[1726458271067,0.14687997,2278.5,2278.3,0.0381403]
[1726458271986,0.14687997,2278.5,2278.3,4.4273603]
[1726458272524,0.14687997,2278.5,2278.3,0.0381403]
[1726458272871,0.14687997,2278.5,2278.3,4.4273703]
[1726458273068,0.14687997,2278.5,2278.3,0.0381403]
[1726458274080,1.91790806,2278.5,2278.3,0.0381403]
[1726458274280,1.06591559,2278.5,2278.3,0.0381403]
[1726458275210,0.14687997,2278.5,2278.3,0.0381403]
[1726458275986,1.91786363,2278.5,2278.3,0.0381403]
[1726458276187,0.14687997,2278.5,2278.3,0.0381403]
[1726458284540,0.14687997,2278.5,2278.3,1.34889833]
[1726458284833,0.14687997,2278.5,2278.4,16.85854579]
[1726458285000,0.14687997,2278.5,2278.4,8.49414]
[1726458286752,0.14687997,2278.5,2278.4,12.46950579]
[1726458286951,0.14687997,2278.5,2278.4,16.85854579]
[1726458287439,0.14687997,2278.5,2278.4,17.40854579]
[1726458287743,0.14687997,2278.5,2278.4,19.5921344]
[1726458292247,0.14687997,2278.5,2278.4,17.45087864]
[1726458293214,0.91903562,2279.0,2278.7,4.38835]
[1726458293421,3.03581697,2279.0,2278.7,4.38835]
[1726458293618,0.84671254,2278.9,2278.6,4.38858]
[1726458294011,0.84671254,2278.9,2278.5,6.22280003]
[1726458294209,4.1762,2278.8,2278.5,4.38869]
[1726458296942,4.1762,2278.8,2278.4,8.49413]
[1726458297111,5.09523562,2278.8,2278.4,8.49413]
[1726458297307,5.09523562,2278.8,2278.5,4.38883]
[1726458298048,0.84710453,2278.7,2278.5,4.38883]
[1726458298212,5.09523562,2278.8,2278.5,4.38883]
[1726458298411,0.84722942,2278.7,2278.5,4.38883]
[1726458298643,5.09523562,2278.8,2278.5,4.38883]
[1726458299047,0.99407687,2278.7,2278.5,4.38883]
[1726458299228,3.63184529,2278.6,2278.3,4.4272003]
[1726458299570,0.84744824,2278.5,2278.3,0.0381403]
[1726458299854,0.14684966,2278.5,2278.3,0.0381403]
[1726458300042,1.44183387,2278.4,2278.3,0.0381403]
[1726458300253,5.46828528,2278.5,2278.3,0.0381403]
[1726458300254,1.06588528,2278.5,2278.3,0.0381403]
[1726458300558,0.1466271,2278.4,2278.3,9.44270733]
[1726458300721,0.1466271,2278.4,2278.3,15.03988033]
[1726458300915,1.37923652,2278.9,2278.7,4.3884]
[1726458300916,0.91903562,2278.9,2278.7,4.3884]
[1726458301216,0.91903562,2278.9,2278.3,10.50752033]
[1726458301217,3.18445794,2278.8,2278.5,4.38871]
[1726458301538,1.06566272,2278.8,2278.5,4.38871]
[1726458301747,0.84759345,2278.7,2278.5,4.38871]
[1726458301947,0.91903562,2278.7,2278.5,4.38871]
[1726458302451,0.91903562,2278.7,2278.5,6.22282003]
[1726458302452,0.1466271,2278.6,2278.5,6.22282003]
[1726458302969,0.1466271,2278.6,2278.5,1.83411003]
[1726458303119,0.91903562,2278.7,2278.5,1.83411003]
[1726458303321,0.91903562,2278.7,2278.4,4.38892]
[1726458303322,0.1466271,2278.6,2278.4,4.38892]
[1726458303516,0.1466271,2278.6,2278.3,6.11835033]
[1726458303841,1.06566272,2278.6,2278.3,4.2842403]
[1726458304042,1.06566272,2278.6,2278.3,0.0381403]
[1726458304265,1.06566272,2278.6,2278.4,4.38901]
[1726458304460,1.06566272,2278.6,2278.5,6.03171003]
[1726458304461,0.1466271,2278.6,2278.5,6.03171003]
[1726458304760,0.1466271,2278.6,2278.5,14.80941003]
[1726458305420,0.91903562,2278.8,2278.7,4.38846]
[1726458305557,0.91903562,2279.0,2278.8,4.38827]
[1726458305729,0.91903562,2279.1,2279.0,4.38788]
[1726458305934,5.43103652,2279.3,2279.2,4.3875]
[1726458305935,0.91903562,2279.3,2279.2,4.3875]
[1726458306268,0.91903562,2279.4,2279.2,8.5851]
[1726458306567,0.84403091,2279.3,2279.2,4.1976]
[1726458306926,0.84403091,2279.3,2279.1,6.22169003]
[1726458307123,0.84403091,2279.3,2279.1,10.60927003]
[1726458307124,0.91903562,2279.3,2279.1,10.60927003]
[1726458307369,1.37923652,2279.4,2278.9,4.38796]
[1726458307370,0.91903562,2279.4,2278.9,4.38796]
[1726458307578,0.91903562,2279.2,2278.9,6.22207003]
[1726458307739,2.18495175,2279.2,2278.9,7.26942703]
[1726458307942,0.91903562,2279.3,2279.1,4.38769]
[1726458308187,0.84396875,2279.2,2279.1,4.38769]
[1726458308731,0.84396875,2279.2,2278.9,4.38792]
[1726458308935,0.84396875,2279.2,2278.9,8.77588]
[1726458308936,0.84393929,2279.1,2278.9,8.77588]
[1726458309267,0.91903562,2279.2,2278.9,8.77588]
[1726458309463,0.91903562,2279.2,2279.0,4.38785]
[1726458309464,2.18489845,2279.2,2279.0,4.38785]
[1726458309835,0.84392765,2279.1,2279.0,4.38785]
[1726458310041,0.91903562,2279.2,2279.0,4.38785]
[1726458310243,0.84392611,2279.1,2279.0,4.38785]
[1726458310679,3.02887648,2279.1,2279.0,4.38785]
[1726458311044,0.84392611,2279.1,2279.0,4.38785]
[1726458311869,0.84392611,2279.1,2279.0,6.22196003]
[1726458312076,0.84392611,2279.1,2279.0,7.83837183]
[1726458312279,0.84392611,2279.1,2279.0,6.22196003]
[1726458312661,0.84390181,2279.1,2279.0,6.22196003]
[1726458313980,0.99099416,2279.1,2279.0,6.22196003]
[1726458314294,0.14709235,2279.1,2279.0,10.60984003]
[1726458314438,0.14709235,2279.1,2279.0,16.29137403]
[1726458314866,0.91903562,2279.3,2279.2,4.3875]
[1726458315173,3.63410465,2279.3,2279.2,4.3875]
[1726458316079,3.63410465,2279.3,2279.2,6.22161003]
[1726458316583,1.44253634,2279.3,2279.2,4.3875]
[1726458316782,0.84835513,2279.3,2279.2,4.3875]
[1726458317142,0.84835513,2279.3,2279.0,14.80506003]
[1726458317143,3.03946143,2279.3,2279.0,14.80506003]
[1726458317359,0.91903562,2279.3,2279.0,10.41721003]
[1726458317678,2.19121338,2279.3,2279.0,10.41721003]
[1726458317903,2.19121338,2279.3,2279.1,4.38758]
[1726458320279,0.91903562,2279.3,2279.1,4.38758]
[1726458320486,2.19125884,2279.3,2279.1,4.38758]
[1726458321744,2.19125884,2279.3,2279.0,4.3877]
[1726458321978,3.6338476,2279.2,2278.9,4.38797]
[1726458322175,0.84834718,2279.1,2278.9,4.38797]
[1726458322376,0.84834718,2279.1,2279.0,4.38788]
[1726458322961,1.7673828,2279.1,2279.0,4.38788]
[1726458323487,3.04007566,2279.1,2279.0,4.38788]
[1726458323691,3.04011491,2279.1,2279.0,4.38788]
[1726458324068,1.7673828,2279.1,2279.0,4.38788]
[1726458324289,4.09465218,2279.1,2278.6,4.38858]
[1726458324491,4.09465218,2279.1,2278.0,5.28206167]
[1726458324492,0.92060878,2278.9,2278.8,4.38827]
[1726458324705,0.84834718,2278.9,2278.8,4.38827]
[1726458325025,0.84834718,2278.9,2278.7,6.22247003]
[1726458325207,2.1936677,2278.9,2278.7,6.22247003]
[1726458326020,0.92060878,2278.9,2278.7,6.22247003]
[1726458326231,0.92060878,2278.9,2278.7,10.61084003]
[1726458326394,0.92060878,2278.9,2278.7,6.22247003]
[1726458326595,2.19372234,2278.9,2278.7,6.22247003]
[1726458326913,0.92060878,2278.9,2278.7,6.22247003]
[1726458327115,0.92060878,2279.0,2278.7,6.22247003]
[1726458327280,1.76936798,2278.9,2278.7,6.22247003]
[1726458327476,0.92060878,2278.9,2278.7,6.22247003]
[1726458327715,0.92060878,2278.9,2278.7,6.22246003]
[1726458328887,0.14709238,2278.8,2278.7,6.22246003]
[1726458332144,0.9961062,2278.8,2278.7,6.22246003]
[1726458335982,0.14709238,2278.8,2278.7,6.22246003]
[1726458336249,0.99622866,2278.8,2278.7,6.22246003]
[1726458337148,3.19059475,2278.8,2278.7,6.22246003]
[1726458337349,0.99622866,2278.8,2278.7,6.22246003]
[1726458339826,1.91683744,2278.8,2278.7,6.22246003]
[1726458340415,0.99622866,2278.8,2278.7,6.22246003]
[1726458340841,3.19066584,2278.8,2278.7,6.22246003]
[1726458341850,3.19069643,2278.8,2278.7,6.22246003]
[1726458342677,3.19076391,2278.8,2278.7,6.22246003]
[1726458342892,3.19076391,2278.8,2278.7,21.20970703]
[1726458342893,0.14709238,2278.8,2278.7,21.20970703]
[1726458343063,0.14709238,2278.8,2278.7,24.20970703]
[1726458343265,0.92060878,2279.2,2279.1,12.93818]
[1726458343461,1.37923652,2279.3,2279.1,12.93818]
[1726458343462,0.92060878,2279.3,2279.2,4.3875]
[1726458343646,0.84906445,2279.3,2279.2,4.3875]
[1726458343849,1.76967323,2279.3,2279.2,4.3875]
[1726458344074,0.99610629,2279.3,2279.2,4.3875]
[1726458344375,3.78444268,2279.3,2279.2,4.3875]
[1726458344935,3.78444268,2279.3,2279.1,4.38769]
[1726458345172,3.04710729,2279.2,2279.0,4.38783]
[1726458345438,0.84906445,2279.1,2279.0,4.38783]
[1726458345631,3.19691335,2279.1,2279.0,4.38783]
[1726458346077,3.19691335,2279.1,2279.0,6.22194003]
[1726458346967,3.19694201,2279.1,2279.0,6.22194003]
[1726458347134,3.19694201,2279.1,2279.0,10.60982003]
[1726458347337,0.14706206,2279.1,2279.0,14.72632003]
[1726458347577,0.14706206,2279.1,2279.0,22.66420003]
[1726458348036,0.92060878,2279.5,2279.4,8.68221]
[1726458348238,3.0495868,2279.5,2279.4,10.51632003]
[1726458348473,3.0495868,2279.5,2279.4,4.38711]
[1726458349236,3.0495868,2279.5,2279.4,6.22122003]
[1726458349639,3.0495868,2279.5,2279.4,4.38711]
[1726458350379,3.04944928,2279.5,2279.4,4.38711]
[1726458351579,0.8515362,2279.5,2279.4,10.60833003]
[1726458351939,3.0491815,2279.5,2279.4,10.60833003]
[1726458352483,0.8515362,2279.5,2279.4,10.60833003]
[1726458353586,0.92060878,2279.7,2279.6,9.32346]
[1726458353750,3.5071027,2279.7,2279.6,11.15757003]
[1726458353949,3.5071027,2279.7,2279.6,12.80710033]
[1726458354151,0.92036512,2279.7,2279.6,12.80710033]
[1726458354382,0.85100233,2279.7,2279.6,12.80710033]
[1726458354735,0.92036512,2279.8,2279.7,4.38654]
[1726458354939,3.04782272,2279.8,2279.7,4.38654]
[1726458355381,3.50669412,2279.8,2279.6,4.38673]
[1726458355581,3.0476083,2279.7,2279.6,4.38673]
[1726458355805,0.9201507,2279.8,2279.6,4.38673]
[1726458355941,0.9201507,2279.8,2279.6,5.875195]
[1726458356139,2.19603847,2279.8,2279.6,5.875195]
[1726458356439,0.9201507,2279.9,2279.8,4.38634]
[1726458356758,3.04654872,2279.9,2279.8,5.80952143]
[1726458356960,0.85055921,2279.9,2279.8,5.80952143]
[1726458357290,0.85030176,2279.9,2279.8,5.80952143]
[1726458357445,0.9201507,2280.0,2279.9,4.38615]
[1726458357640,3.04586772,2280.0,2279.8,9.7799907]
[1726458357841,0.9201507,2280.0,2279.8,8.77268]
[1726458358085,0.9201507,2280.0,2279.8,4.38634]
[1726458358501,0.9201507,2280.0,2279.8,4.38623]
[1726458358644,4.9637507,2280.1,2279.9,0.438623]
[1726458358842,4.9637507,2280.1,2279.8,4.38622]
[1726458358843,0.14840683,2279.9,2279.8,4.38622]
[1726458359084,4.9637507,2280.1,2279.8,4.38622]
[1726458359250,0.14840683,2279.9,2279.8,5.37073543]
[1726458359795,4.0436,2280.1,2279.8,5.37073543]
[1726458360004,4.0436,2280.1,2279.8,4.38622]
[1726458360005,0.14840683,2279.9,2279.8,4.38622]
[1726458360151,4.0436,2280.1,2279.8,4.38622]
[1726458360349,4.0436,2280.1,2279.5,3.9022]
[1726458360350,0.99851982,2280.0,2279.5,3.9022]
[1726458360551,0.99851982,2280.0,2279.5,4.38689]
[1726458360552,4.81258556,2279.9,2279.5,4.38689]
[1726458360796,2.12504748,2279.8,2279.5,4.38689]
[1726458361000,2.34379126,2279.8,2279.4,4.38692]
[1726458361301,1.06872934,2279.8,2279.4,4.38692]
[1726458361591,0.85001902,2279.7,2279.4,4.38692]
[1726458361828,4.0709,2279.6,2279.2,8.77476]
[1726458362123,4.0709,2279.6,2279.3,4.38728]
[1726458362124,4.21933715,2279.6,2279.3,4.38728]
[1726458362431,4.21933715,2279.6,2279.2,4.38737]
[1726458362594,5.13948785,2279.6,2279.3,4.38728]
[1726458363128,4.21933715,2279.6,2279.3,4.38728]
[1726458363433,4.21933715,2279.6,2279.3,8.35774927]
[1726458365088,4.21933715,2279.6,2279.4,4.38701]
[1726458365326,0.14843715,2279.6,2279.4,4.38701]
[1726458365626,0.14843715,2279.6,2279.5,4.38692]
[1726458365782,0.14843715,2279.6,2279.4,8.356]
[1726458365982,4.9951507,2279.8,2279.4,4.387]
[1726458366184,0.14820469,2279.5,2279.4,4.38699]
[1726458366384,4.9951507,2279.8,2279.4,8.774]
[1726458366584,0.14820469,2279.5,2279.4,8.774]
[1726458366877,4.9951507,2279.8,2279.5,4.38692]
[1726458367594,4.9951507,2279.8,2279.6,4.38671]
[1726458367783,0.9201507,2279.9,2279.7,3.97046927]
[1726458368021,0.9201507,2280.0,2279.7,12.74334927]
[1726458368394,2.22886496,2280.1,2279.6,4.1217]
[1726458368395,0.9201507,2280.1,2279.6,8.50833]
[1726458368604,1.76965385,2280.0,2279.6,4.38663]
[1726458368823,0.9201507,2280.0,2279.6,4.38663]
[1726458369034,3.04397833,2280.0,2279.6,4.38663]
[1726458369327,0.9201507,2280.0,2279.6,4.38663]
[1726458369513,3.04377653,2280.0,2279.6,4.38663]
[1726458369695,5.07885678,2279.9,2279.4,8.5087]
[1726458369895,5.23585762,2279.8,2279.3,4.38716]
[1726458370115,0.84952555,2279.7,2279.3,4.38716]
[1726458370501,3.04395954,2279.7,2279.3,4.38716]
[1726458370703,0.84953588,2279.6,2279.3,4.38716]
[1726458370909,0.9201507,2279.7,2279.3,4.38716]
[1726458371093,0.59412061,2279.6,2279.3,8.77436]
[1726458371296,0.9201507,2279.7,2279.3,4.38716]
[1726458371806,0.59410968,2279.6,2279.3,4.38716]
[1726458372125,0.9201507,2279.7,2279.3,4.38716]
[1726458372341,0.59411326,2279.6,2279.3,4.38716]
[1726458372630,0.9201507,2279.7,2279.3,4.38716]
[1726458372850,0.59411156,2279.6,2279.3,4.38716]
[1726458373064,0.9201507,2279.7,2279.3,4.38716]
[1726458373343,0.59411269,2279.6,2279.3,4.38716]
[1726458373542,1.76984359,2279.6,2279.3,4.38716]
[1726458373701,0.9201507,2279.6,2279.3,4.38716]
[1726458374032,0.74265134,2279.5,2279.3,4.38716]
[1726458374234,0.14852814,2279.5,2279.3,4.38716]
[1726458374641,0.14852814,2279.5,2279.4,4.38711]
[1726458374939,0.14852814,2279.5,2279.4,13.34685107]
[1726458375351,0.9201507,2280.0,2279.7,4.38651]
[1726458375649,0.59403276,2279.9,2279.7,4.38651]
[1726458375947,0.59403276,2279.8,2279.7,4.38651]
[1726458376295,0.59406267,2279.8,2279.5,4.3869]
[1726458376494,4.2514,2279.8,2279.5,4.3869]
[1726458376741,0.59407154,2279.7,2279.4,3.97046927]
[1726458376966,1.37923652,2280.0,2279.8,4.3862]
[1726458376967,0.9201507,2280.0,2279.8,4.3862]
[1726458377251,5.63063652,2280.1,2279.9,0.43862]
[1726458377252,0.9201507,2280.1,2279.9,0.43862]
[1726458377396,0.59401335,2280.0,2279.8,8.35666927]
[1726458377600,0.9201507,2280.1,2279.8,4.3862]
[1726458377798,3.0443182,2280.1,2279.8,4.3862]
[1726458378012,0.59402817,2280.0,2279.8,4.3862]
[1726458378221,0.9201507,2280.1,2279.8,8.77242]
[1726458378423,8.70923652,2280.2,2279.9,8.9586081]
[1726458378424,0.59402483,2280.0,2279.9,8.9586081]
[1726458378741,1.83898868,2280.4,2280.1,4.38577]
[1726458378742,0.9201507,2280.4,2280.1,4.38577]
[1726458378945,0.59396276,2280.3,2280.1,4.38577]
[1726458379145,0.59396276,2280.2,2280.1,4.38577]
[1726458379441,1.51411346,2280.3,2280.0,4.38591]
[1726458379601,1.44345783,2280.2,2280.0,5.81623983]
[1726458379800,0.9201507,2280.3,2280.0,5.81623983]
[1726458380106,2.36364195,2280.2,2280.1,4.38577]
[1726458380316,1.44349125,2280.2,2280.1,4.38577]
[1726458380511,0.84949597,2280.2,2280.1,4.38577]
[1726458380753,1.44349674,2280.2,2280.1,4.38577]
[1726458380961,1.44348939,2280.2,2280.1,4.38577]
[1726458382208,0.59400077,2280.2,2280.0,1.43032983]
[1726458382436,0.9201507,2280.3,2280.0,5.81616983]
[1726458382636,0.59399532,2280.2,2280.0,5.81616983]
[1726458382804,0.9201507,2280.4,2280.0,5.81616983]
[1726458383000,0.59397401,2280.3,2280.0,5.81616983]
[1726458383221,3.04388931,2280.3,2280.0,5.81616983]
[1726458383399,0.9201507,2280.4,2280.0,5.81616983]
[1726458383599,0.59397744,2280.3,2280.0,5.81616983]
[1726458383937,1.76964268,2280.3,2280.0,5.81616983]
[1726458384142,0.9201507,2280.3,2280.0,5.81616983]
[1726458384294,1.76977617,2280.3,2280.0,5.81616983]
[1726458384497,4.56279122,2280.2,2279.8,3.97046927]
[1726458384741,4.8889507,2280.2,2279.7,8.47389]
[1726458385717,0.84979155,2280.1,2279.7,8.47389]
[1726458385911,0.84979155,2280.1,2279.8,4.38622]
[1726458386319,0.84979155,2280.1,2279.9,4.38614]
[1726458387138,1.76994225,2280.1,2279.9,4.38614]
[1726458387341,3.04516585,2280.1,2279.9,4.38614]
[1726458387643,0.9201507,2280.1,2279.7,14.23178563]
[1726458387845,4.8889507,2280.2,2279.8,4.38624]
[1726458387998,0.85014459,2280.1,2279.9,4.38613]
[1726458388200,2.19570757,2280.1,2279.9,4.38613]
[1726458388414,0.9201507,2280.1,2279.9,4.38613]
[1726458388843,0.14917493,2280.0,2279.9,4.38613]
[1726458389053,0.14917493,2280.0,2279.9,10.59247949]
[1726458389210,0.14917493,2280.0,2279.9,15.13797949]
[1726458389403,0.9201507,2280.3,2280.0,4.38577]
[1726458389609,0.85032912,2280.2,2280.0,4.38577]
[1726458389804,0.9201507,2280.3,2280.0,4.38577]
[1726458390003,0.85032971,2280.2,2280.0,4.38577]
[1726458390326,0.9201507,2280.3,2280.0,4.38577]
[1726458390497,3.04586301,2280.2,2280.0,4.38577]
[1726458390702,0.9201507,2280.2,2280.0,4.38577]
[1726458391301,0.9201507,2280.2,2279.9,8.38163]
[1726458391504,0.85035985,2280.1,2279.9,4.38613]
[1726458391857,0.9201507,2280.2,2279.9,4.38613]
[1726458391858,5.1912507,2280.2,2279.9,4.38612]
[1726458392143,3.04613368,2280.1,2279.9,4.38612]
[1726458392302,0.9201507,2280.1,2279.9,4.38612]
[1726458393080,0.9201507,2280.1,2280.0,4.38596]
[1726458393205,0.85066422,2280.1,2280.0,4.38596]
[1726458393963,1.77081492,2280.1,2280.0,4.38596]
[1726458394253,0.85066422,2280.1,2280.0,4.38596]
[1726458395040,0.85064104,2280.1,2280.0,4.38596]
[1726458395235,0.85064104,2280.1,2279.8,8.35670927]
[1726458395444,0.9201507,2280.1,2279.8,12.74295927]
[1726458395646,2.19610848,2280.1,2279.8,8.35670927]
[1726458395944,0.85067534,2280.0,2279.8,4.3862]
[1726458396142,0.9201507,2280.1,2279.8,4.3862]
[1726458396356,3.04686227,2280.0,2279.5,4.93682]
[1726458396505,7.19837601,2279.9,2279.5,4.38681]
[1726458396713,0.85069638,2279.8,2279.5,4.38681]
[1726458397010,2.19633589,2279.8,2279.5,4.38681]
[1726458397202,2.19633589,2279.8,2279.3,4.38716]
[1726458397203,0.9201507,2279.8,2279.3,4.38716]
[1726458397412,0.85087388,2279.7,2279.5,4.3869]
[1726458397743,0.9201507,2279.8,2279.5,4.3869]
[1726458397946,3.04726533,2279.7,2279.5,4.3869]
[1726458398248,0.9201507,2279.7,2279.5,4.3869]
[1726458398436,0.9201507,2279.7,2279.3,8.7743]
[1726458398632,0.85088659,2279.6,2279.3,4.38714]
[1726458398837,0.9201507,2279.7,2279.3,8.77433]
[1726458399008,0.85091154,2279.6,2279.3,4.38714]
[1726458399379,0.85093692,2279.5,2279.3,4.38726]
[1726458399510,0.9201507,2279.5,2279.3,4.38726]
[1726458399708,2.19658648,2279.5,2279.3,4.38726]
[1726458400223,4.9130507,2279.6,2279.3,4.38726]
[1726458401520,0.85086232,2279.5,2279.3,4.38726]
[1726458401739,4.9130507,2279.6,2279.3,4.38726]
[1726458403394,0.9201507,2279.6,2279.3,4.38726]
[1726458403688,2.19632584,2279.6,2279.5,4.38692]
[1726458403858,0.9201507,2279.7,2279.6,4.38673]
[1726458404186,0.85073488,2279.7,2279.6,8.35719927]
[1726458404398,0.9201507,2279.8,2279.6,8.35719927]
[1726458405992,1.37923652,2279.9,2279.6,8.35719927]
[1726458405993,0.9201507,2279.9,2279.6,8.35719927]
[1726458406152,0.85074228,2279.8,2279.6,8.35705927]
[1726458406353,0.9201507,2279.9,2279.6,12.74367927]
[1726458406676,0.85074056,2279.8,2279.6,12.74367927]
[1726458406880,0.9201507,2279.9,2279.6,12.74367927]
[1726458407666,0.9201507,2279.9,2279.8,4.38634]
[1726458407865,0.85073333,2279.9,2279.8,8.35680927]
[1726458408216,3.04703489,2279.9,2279.6,10.0370872]
[1726458408399,0.9201507,2279.9,2279.6,10.0370872]
[1726458408698,0.9201507,2279.9,2279.6,3.97046927]
[1726458408851,1.37923652,2280.0,2279.9,8.7723]
[1726458408852,0.9201507,2280.0,2279.9,8.7723]
[1726458409053,0.9201507,2280.3,2280.1,8.31627]
[1726458409360,0.9201507,2280.4,2280.2,4.38545]
[1726458409553,0.85056243,2280.3,2280.2,4.38545]
[1726458409875,1.77071313,2280.3,2280.2,4.38545]
[1726458410065,3.04658887,2280.3,2280.2,4.38545]
[1726458410467,0.85056243,2280.3,2280.2,4.38545]
[1726458411098,0.85056243,2280.3,2280.2,8.77103]
[1726458411294,0.9201507,2280.4,2280.3,8.77076]
[1726458411498,0.9201507,2280.5,2280.4,4.38519]
[1726458411696,3.04622863,2280.5,2280.4,4.38519]
[1726458412618,3.04622863,2280.5,2280.3,4.38538]
[1726458412833,0.85034754,2280.4,2280.3,4.38538]
[1726458413187,0.9201507,2280.5,2280.4,4.38519]
[1726458413518,0.9201507,2280.6,2280.4,4.38519]
[1726458413824,0.85021023,2280.5,2280.4,4.38519]
[1726458414193,0.9201507,2280.6,2280.4,4.38519]
[1726458415009,0.85005664,2280.5,2280.4,4.38519]
[1726458416039,1.77020734,2280.5,2280.4,4.38519]
[1726458416231,0.85005664,2280.5,2280.4,4.38519]
[1726458416752,1.77020734,2280.5,2280.4,4.38519]
[1726458417033,3.04511884,2280.5,2280.4,4.38519]
[1726458418386,3.04511884,2280.5,2280.3,8.77065]
[1726458418591,0.9201507,2280.5,2280.3,4.38527]
[1726458418751,1.76565025,2280.5,2280.4,4.38519]
[1726458419091,0.84549955,2280.5,2280.4,4.38519]
[1726458419994,0.84549955,2280.5,2280.3,4.38527]
[1726458420219,0.84566689,2280.4,2280.3,8.77056]
[1726458420371,0.9201507,2280.5,2280.1,8.31609]
[1726458420708,0.8456886,2280.4,2280.2,4.38541]
[1726458420852,2.18866085,2280.4,2280.3,4.38538]
[1726458421198,3.03434068,2280.4,2280.3,4.38538]
[1726458421566,1.76583053,2280.4,2280.3,4.38538]
[1726458421879,3.0343514,2280.4,2280.3,4.38538]
[1726458422299,3.0343514,2280.4,2280.2,4.38557]
[1726458422476,0.9201507,2280.4,2280.2,4.38557]
[1726458422865,0.84571149,2280.3,2280.2,4.38557]
[1726458423061,0.9201507,2280.4,2280.2,4.38557]
[1726458423368,0.84570778,2280.3,2280.2,4.38557]
[1726458423796,0.9201507,2280.4,2280.2,4.38557]
[1726458424115,0.84572048,2280.3,2280.2,4.38557]
[1726458424620,0.9201507,2280.4,2280.2,4.38557]
[1726458425020,0.84571149,2280.3,2280.2,4.38557]
[1726458425167,0.9201507,2280.4,2280.2,4.38557]
[1726458425670,0.84569475,2280.3,2280.1,4.38566]
[1726458426448,0.84569475,2280.3,2280.2,4.38555]
[1726458427217,0.9201507,2280.4,2280.2,4.38555]
[1726458427414,0.84566017,2280.3,2280.2,4.38555]
[1726458429551,1.76581087,2280.3,2280.2,4.38555]
[1726458429870,3.03432077,2280.3,2280.2,4.38555]
[1726458431948,3.03432077,2280.3,2280.2,4.38558]
[1726458433631,3.62830974,2280.3,2280.2,4.38558]
[1726458433806,2.50982347,2280.3,2280.2,18.0724972]
[1726458434012,0.15002363,2280.3,2280.2,12.82786]
[1726458434212,0.99568729,2280.3,2280.2,12.82786]
[1726458434665,0.99568729,2280.3,2280.0,12.45689927]
[1726458434824,1.66414173,2280.3,2280.2,4.38558]
[1726458435023,3.77839268,2280.3,2280.0,4.38583]
[1726458435221,7.64655934,2280.2,2280.0,4.38583]
[1726458435430,1.4396923,2280.1,2280.0,4.38583]
[1726458435654,1.58955513,2280.1,2280.0,4.38583]
[1726458436016,2.50970583,2280.1,2279.9,4.38602]
[1726458436350,0.14982158,2280.1,2279.9,4.38602]
[1726458436657,0.14982158,2280.1,2280.0,4.38596]
[1726458436962,0.7438088,2280.1,2280.0,4.38596]
[1726458437338,0.7438088,2280.1,2280.0,18.7721342]
[1726458437663,1.83898868,2280.4,2280.2,4.38558]
[1726458437664,0.9201507,2280.4,2280.2,4.38558]
[1726458437827,0.59394109,2280.3,2280.2,5.70550633]
[1726458438031,0.59394109,2280.3,2280.2,10.09108633]
[1726458438032,1.43955881,2280.3,2280.2,10.09108633]
[1726458438230,0.59394109,2280.3,2280.2,10.09108633]
[1726458438480,0.59394109,2280.3,2280.2,5.70550633]
[1726458438666,1.43956542,2280.3,2280.2,5.70550633]
[1726458438956,1.43956542,2280.3,2280.2,4.38558]
[1726458439469,3.62818916,2280.3,2280.1,4.38559]
[1726458439666,1.43960929,2280.2,2280.1,4.38559]
[1726458439819,3.62827462,2280.2,2280.1,4.38559]
[1726458440019,0.59394109,2280.2,2280.1,8.28549]
[1726458440221,1.43957508,2280.2,2280.1,8.28549]
[1726458440470,0.59394109,2280.2,2280.1,8.28549]
[1726458440614,0.59394109,2280.2,2280.1,4.38559]
[1726458441462,0.59394109,2280.2,2280.1,15.0015526]
[1726458441673,0.9201507,2280.4,2280.3,4.38538]
[1726458441958,3.62802142,2280.4,2280.3,4.38538]
[1726458442159,3.62802142,2280.4,2280.3,8.77076]
[1726458442462,3.62802142,2280.4,2280.3,14.3719843]
[1726458442666,0.59392925,2280.4,2280.3,14.3719843]
[1726458442835,1.37923652,2280.6,2280.5,4.385]
[1726458442836,0.9201507,2280.6,2280.5,4.385]
[1726458443035,1.43943096,2280.6,2280.5,5.82214043]
[1726458443247,1.43943096,2280.6,2280.5,4.385]
[1726458443761,0.59390547,2280.6,2280.5,13.4077]
[1726458443965,0.59390547,2280.6,2280.5,15.29464936]
[1726458444262,0.9201507,2280.8,2280.7,4.38461]
[1726458444472,2.35948948,2280.8,2280.7,4.38461]